[Event "Titled Tuesday Blitz May 9 Early 2023"]
[White "Matlakov, Maxim"]
[Black "Santos Flores, Alberto"]
[WhiteFideId "4168003"]
[BlackFideId "3601234"]
[WhiteElo "2666"]
[BlackElo "2235"]
[Result "1-0"]
[Round "03"]
[TimeControl "180+2"]
[Date "2023.05.09"]
[WhiteClock "0:01:36"]
[BlackClock "0:00:14"]

1. Nf3 {[%clk 0:03:00]}  d5 {[%clk 0:02:59]} 2. e3 {[%clk 0:03:01]}  Nf6 {[%clk 0:02:59]} 3. c4 {[%clk 0:03:00]}  c6 {[%clk 0:02:59]} 4. b3 {[%clk 0:03:01]}  Bf5 {[%clk 0:02:59]} 5. Bb2 {[%clk 0:03:01]}  e6 {[%clk 0:02:59]} 6. Be2 {[%clk 0:03:01]}  h6 {[%clk 0:02:59]} 7. O-O {[%clk 0:03:01]}  Nbd7 {[%clk 0:02:59]} 8. d3 {[%clk 0:03:02]}  Be7 {[%clk 0:02:58]} 9. Nbd2 {[%clk 0:03:02]}  O-O {[%clk 0:02:58]} 10. Qc2 {[%clk 0:03:03]}  a5 {[%clk 0:02:57]} 11. a3 {[%clk 0:03:03]}  Bh7 {[%clk 0:02:57]} 12. Bc3 {[%clk 0:03:03]}  b5 {[%clk 0:02:54]} 13. Rfd1 {[%clk 0:03:02]}  Qb6 {[%clk 0:02:53]} 14. cxd5 {[%clk 0:02:56]}  cxd5 {[%clk 0:02:53]} 15. b4 {[%clk 0:02:56]}  axb4 {[%clk 0:02:50]} 16. axb4 {[%clk 0:02:57]}  Qb7 {[%clk 0:02:43]} 17. Qb2 {[%clk 0:02:57]}  Rfc8 {[%clk 0:02:40]} 18. Nb3 {[%clk 0:02:56]}  Ne8 {[%clk 0:02:36]} 19. h3 {[%clk 0:02:53]}  Bf6 {[%clk 0:02:35]} 20. Bxf6 {[%clk 0:02:52]}  Nexf6 {[%clk 0:02:34]} 21. Rxa8 {[%clk 0:02:49]}  Rxa8 {[%clk 0:02:33]} 22. d4 {[%clk 0:02:49]}  Nb6 {[%clk 0:02:12]} 23. Nc5 {[%clk 0:02:44]}  Qc6 {[%clk 0:02:03]} 24. Ne5 {[%clk 0:02:42]}  Qe8 {[%clk 0:02:03]} 25. Ra1 {[%clk 0:02:41]}  Nc4 {[%clk 0:02:00]} 26. Qc1 {[%clk 0:02:27]}  Ne4 {[%clk 0:01:54]} 27. Ned3 {[%clk 0:02:00]}  Ned6 {[%clk 0:01:49]} 28. Bh5 {[%clk 0:01:55]}  Bxd3 {[%clk 0:01:46]} 29. Nxd3 {[%clk 0:01:55]}  g6 {[%clk 0:01:39]} 30. Be2 {[%clk 0:01:55]}  Ne4 {[%clk 0:01:32]} 31. Nc5 {[%clk 0:01:54]}  Nxc5 {[%clk 0:01:32]} 32. dxc5 {[%clk 0:01:54]}  Rxa1 {[%clk 0:01:27]} 33. Qxa1 {[%clk 0:01:54]}  Qc6 {[%clk 0:01:26]} 34. Qa7 {[%clk 0:01:52]}  Kg7 {[%clk 0:01:19]} 35. Qb8 {[%clk 0:01:51]}  g5 {[%clk 0:01:05]} 36. g3 {[%clk 0:01:50]}  Kh7 {[%clk 0:00:53]} 37. Qf8 {[%clk 0:01:48]}  Qc7 {[%clk 0:00:31]} 38. Bh5 {[%clk 0:01:38]}  Nxe3 {[%clk 0:00:14]} 39. Bxf7 {[%clk 0:01:36]} 1-0


[Site "https://www.chess.com"]

[Event "Titled Tuesday Blitz May 9 Early 2023"]
[White "Ter-Sahakyan, Samvel"]
[Black "Yeritsyan, Hayk"]
[WhiteFideId "13302531"]
[BlackFideId "13307320"]
[WhiteElo "2545"]
[BlackElo "2509"]
[Result "1-0"]
[Round "03"]
[TimeControl "180+2"]
[Date "2023.05.09"]
[WhiteClock "0:00:52"]
[BlackClock "0:00:00"]

1. d4 {[%clk 0:03:00]}  Nf6 {[%clk 0:02:53]} 2. c4 {[%clk 0:03:00]}  g6 {[%clk 0:02:48]} 3. Nc3 {[%clk 0:02:57]}  Bg7 {[%clk 0:02:47]} 4. e4 {[%clk 0:02:57]}  d6 {[%clk 0:02:31]} 5. Be2 {[%clk 0:02:58]}  O-O {[%clk 0:02:31]} 6. Be3 {[%clk 0:02:57]}  Na6 {[%clk 0:02:30]} 7. Nf3 {[%clk 0:02:56]}  c5 {[%clk 0:02:22]} 8. d5 {[%clk 0:02:48]}  Ng4 {[%clk 0:02:14]} 9. Bg5 {[%clk 0:02:43]}  h6 {[%clk 0:02:12]} 10. Bh4 {[%clk 0:02:43]}  Nc7 {[%clk 0:01:53]} 11. O-O {[%clk 0:02:42]}  a6 {[%clk 0:01:50]} 12. a4 {[%clk 0:02:41]}  Rb8 {[%clk 0:01:43]} 13. Nd2 {[%clk 0:02:37]}  Nf6 {[%clk 0:01:39]} 14. f4 {[%clk 0:02:37]}  Nd7 {[%clk 0:01:29]} 15. Kh1 {[%clk 0:02:37]}  Qe8 {[%clk 0:01:25]} 16. Qc2 {[%clk 0:02:32]}  b5 {[%clk 0:01:13]} 17. axb5 {[%clk 0:02:31]}  axb5 {[%clk 0:01:14]} 18. cxb5 {[%clk 0:02:30]}  Nb6 {[%clk 0:01:11]} 19. Ra7 {[%clk 0:02:20]}  Rb7 {[%clk 0:01:08]} 20. Rxb7 {[%clk 0:02:13]}  Bxb7 {[%clk 0:01:09]} 21. Nc4 {[%clk 0:02:13]}  Nxc4 {[%clk 0:01:01]} 22. Bxc4 {[%clk 0:02:14]}  Qd7 {[%clk 0:00:52]} 23. h3 {[%clk 0:02:09]}  Ra8 {[%clk 0:00:46]} 24. Re1 {[%clk 0:02:07]}  e6 {[%clk 0:00:31]} 25. Qd3 {[%clk 0:01:53]}  exd5 {[%clk 0:00:26]} 26. exd5 {[%clk 0:01:51]}  Re8 {[%clk 0:00:25]} 27. Rxe8+ {[%clk 0:01:45]}  Nxe8 {[%clk 0:00:26]} 28. b3 {[%clk 0:01:32]}  Nf6 {[%clk 0:00:24]} 29. Ne4 {[%clk 0:01:28]}  Nh5 {[%clk 0:00:21]} 30. Qf3 {[%clk 0:01:21]}  f5 {[%clk 0:00:16]} 31. Nf2 {[%clk 0:01:08]}  Qe8 {[%clk 0:00:16]} 32. Nd3 {[%clk 0:01:03]}  Nf6 {[%clk 0:00:14]} 33. Nxc5 {[%clk 0:00:52]}  dxc5 {[%clk 0:00:02]} 34. d6+ {[%clk 0:00:52]}  Kh7 {[%clk 0:00:00]} 35. Qxb7 {[%clk 0:00:52]} 1-0


[Site "https://www.chess.com"]

[Event "Titled Tuesday Blitz May 9 Early 2023"]
[White "Costachi, Mihnea"]
[Black "Pham, Le Thao Nguyen"]
[WhiteFideId "1217518"]
[BlackFideId "12401226"]
[WhiteElo "2456"]
[BlackElo "2286"]
[Result "1-0"]
[Round "03"]
[TimeControl "180+2"]
[Date "2023.05.09"]
[WhiteClock "0:01:24"]
[BlackClock "0:00:00"]

1. Nc3 {[%clk 0:03:00]}  d5 {[%clk 0:02:58]} 2. d4 {[%clk 0:02:59]}  c6 {[%clk 0:02:57]} 3. Bf4 {[%clk 0:02:59]}  Nf6 {[%clk 0:02:54]} 4. f3 {[%clk 0:02:57]}  a6 {[%clk 0:02:20]} 5. e4 {[%clk 0:02:56]}  e6 {[%clk 0:02:19]} 6. Nh3 {[%clk 0:02:49]}  b5 {[%clk 0:02:15]} 7. e5 {[%clk 0:02:48]}  Nfd7 {[%clk 0:02:14]} 8. Bd3 {[%clk 0:02:48]}  c5 {[%clk 0:02:13]} 9. O-O {[%clk 0:02:48]}  Nc6 {[%clk 0:02:10]} 10. dxc5 {[%clk 0:02:46]}  Bxc5+ {[%clk 0:02:09]} 11. Kh1 {[%clk 0:02:47]}  Bb7 {[%clk 0:02:07]} 12. Qe1 {[%clk 0:02:47]}  Ne7 {[%clk 0:02:03]} 13. Rd1 {[%clk 0:02:41]}  Ng6 {[%clk 0:01:55]} 14. Bg5 {[%clk 0:02:39]}  Qc7 {[%clk 0:01:41]} 15. f4 {[%clk 0:02:40]}  Ne7 {[%clk 0:00:53]} 16. Qg3 {[%clk 0:02:36]}  g6 {[%clk 0:00:44]} 17. a4 {[%clk 0:02:36]}  b4 {[%clk 0:00:43]} 18. Ne2 {[%clk 0:02:37]}  O-O-O {[%clk 0:00:37]} 19. c3 {[%clk 0:02:36]}  Kb8 {[%clk 0:00:29]} 20. Nd4 {[%clk 0:02:35]}  Rc8 {[%clk 0:00:24]} 21. Nb3 {[%clk 0:02:27]}  Nf5 {[%clk 0:00:20]} 22. Bxf5 {[%clk 0:02:26]}  gxf5 {[%clk 0:00:21]} 23. Nxc5 {[%clk 0:02:24]}  Qxc5 {[%clk 0:00:17]} 24. Qd3 {[%clk 0:02:06]}  Rhg8 {[%clk 0:00:15]} 25. Bh4 {[%clk 0:02:06]}  bxc3 {[%clk 0:00:14]} 26. Rc1 {[%clk 0:02:05]}  d4 {[%clk 0:00:11]} 27. Bg3 {[%clk 0:02:04]}  Qd5 {[%clk 0:00:11]} 28. Rg1 {[%clk 0:01:57]}  cxb2 {[%clk 0:00:11]} 29. Rb1 {[%clk 0:01:50]}  Rc1 {[%clk 0:00:12]} 30. Rxb2 {[%clk 0:01:51]}  Rgc8 {[%clk 0:00:09]} 31. Rxc1 {[%clk 0:01:51]}  Rxc1+ {[%clk 0:00:08]} 32. Ng1 {[%clk 0:01:51]}  Nc5 {[%clk 0:00:06]} 33. Qd2 {[%clk 0:01:48]}  Ra1 {[%clk 0:00:03]} 34. Qb4 {[%clk 0:01:48]}  d3 {[%clk 0:00:01]} 35. h3 {[%clk 0:01:39]}  Ne4 {[%clk 0:00:01]} 36. Be1 {[%clk 0:01:34]}  d2 {[%clk 0:00:02]} 37. Qf8+ {[%clk 0:01:25]}  Ka7 {[%clk 0:00:01]} 38. Rxb7+ {[%clk 0:01:25]}  Kxb7 {[%clk 0:00:00]} 39. Qb4+ {[%clk 0:01:24]} 1-0


[Site "https://www.chess.com"]

[Event "Titled Tuesday Blitz May 9 Early 2023"]
[White "Isanzhulov, Arystan"]
[Black "Jaskolka, Tomasz"]
[WhiteFideId "13711644"]
[BlackFideId "1170791"]
[WhiteElo "2467"]
[BlackElo "2155"]
[Result "1-0"]
[Round "03"]
[TimeControl "180+2"]
[Date "2023.05.09"]
[WhiteClock "0:01:25"]
[BlackClock "0:00:02"]

1. b3 {[%clk 0:03:00]}  d5 {[%clk 0:02:58]} 2. Bb2 {[%clk 0:03:01]}  Bf5 {[%clk 0:02:59]} 3. Nf3 {[%clk 0:02:58]}  e6 {[%clk 0:02:59]} 4. g3 {[%clk 0:02:59]}  c6 {[%clk 0:03:00]} 5. Bg2 {[%clk 0:02:59]}  Nd7 {[%clk 0:03:01]} 6. O-O {[%clk 0:03:00]}  h6 {[%clk 0:03:01]} 7. d3 {[%clk 0:02:59]}  Ngf6 {[%clk 0:03:01]} 8. Nbd2 {[%clk 0:02:59]}  Be7 {[%clk 0:03:02]} 9. Re1 {[%clk 0:02:58]}  Bg6 {[%clk 0:03:02]} 10. e4 {[%clk 0:02:55]}  O-O {[%clk 0:02:58]} 11. Qe2 {[%clk 0:02:55]}  Re8 {[%clk 0:02:51]} 12. Rad1 {[%clk 0:02:55]}  Qa5 {[%clk 0:02:49]} 13. a3 {[%clk 0:02:54]}  Rac8 {[%clk 0:02:39]} 14. c4 {[%clk 0:02:51]}  dxe4 {[%clk 0:02:33]} 15. dxe4 {[%clk 0:02:48]}  Rcd8 {[%clk 0:02:34]} 16. b4 {[%clk 0:02:47]}  Qc7 {[%clk 0:02:33]} 17. e5 {[%clk 0:02:46]}  Nh7 {[%clk 0:02:32]} 18. h3 {[%clk 0:02:42]}  Ng5 {[%clk 0:02:28]} 19. Nxg5 {[%clk 0:02:42]}  Bxg5 {[%clk 0:02:21]} 20. Ne4 {[%clk 0:02:42]}  Bxe4 {[%clk 0:02:22]} 21. Qxe4 {[%clk 0:02:40]}  Be7 {[%clk 0:02:02]} 22. c5 {[%clk 0:02:34]}  Nf8 {[%clk 0:01:48]} 23. Qg4 {[%clk 0:02:34]}  a5 {[%clk 0:01:22]} 24. Rd6 {[%clk 0:02:33]}  axb4 {[%clk 0:01:22]} 25. axb4 {[%clk 0:02:34]}  Ra8 {[%clk 0:01:20]} 26. Be4 {[%clk 0:02:21]}  Ra4 {[%clk 0:01:06]} 27. Bc1 {[%clk 0:02:16]}  Rxb4 {[%clk 0:00:38]} 28. Bxh6 {[%clk 0:02:09]}  Ng6 {[%clk 0:00:38]} 29. h4 {[%clk 0:02:09]}  gxh6 {[%clk 0:00:20]} 30. Rxe6 {[%clk 0:01:46]}  Rxe4 {[%clk 0:00:12]} 31. Rxg6+ {[%clk 0:01:42]}  fxg6 {[%clk 0:00:13]} 32. Qxg6+ {[%clk 0:01:43]}  Kf8 {[%clk 0:00:13]} 33. Rxe4 {[%clk 0:01:39]}  Bg5 {[%clk 0:00:03]} 34. hxg5 {[%clk 0:01:38]}  hxg5 {[%clk 0:00:03]} 35. Qxg5 {[%clk 0:01:35]}  Re7 {[%clk 0:00:04]} 36. e6 {[%clk 0:01:34]}  Rg7 {[%clk 0:00:02]} 37. Qh6 {[%clk 0:01:34]}  Kg8 {[%clk 0:00:03]} 38. Rh4 {[%clk 0:01:30]}  Kf8 {[%clk 0:00:02]} 39. Qh8+ {[%clk 0:01:23]}  Rg8 {[%clk 0:00:03]} 40. Qf6+ {[%clk 0:01:24]}  Ke8 {[%clk 0:00:03]} 41. Ra4 {[%clk 0:01:24]}  Qb8 {[%clk 0:00:02]} 42. Qf7+ {[%clk 0:01:24]}  Kd8 {[%clk 0:00:02]} 43. Qd7# {[%clk 0:01:25]} 1-0


[Site "https://www.chess.com"]

[Event "Titled Tuesday Blitz May 9 Early 2023"]
[White "Jovic, Stanoje"]
[Black "Sethuraman, S.P."]
[WhiteFideId "905020"]
[BlackFideId "5021596"]
[WhiteElo "2236"]
[BlackElo "2543"]
[Result "0-1"]
[Round "03"]
[TimeControl "180+2"]
[Date "2023.05.09"]
[WhiteClock "0:00:00"]
[BlackClock "0:01:27"]

1. c4 {[%clk 0:03:00]}  e5 {[%clk 0:02:58]} 2. g3 {[%clk 0:03:01]}  Nc6 {[%clk 0:02:56]} 3. Bg2 {[%clk 0:03:01]}  h5 {[%clk 0:02:57]} 4. h3 {[%clk 0:02:56]}  Bc5 {[%clk 0:02:55]} 5. Nc3 {[%clk 0:02:54]}  d6 {[%clk 0:02:55]} 6. Nf3 {[%clk 0:02:53]}  a6 {[%clk 0:02:51]} 7. e3 {[%clk 0:02:52]}  Ba7 {[%clk 0:02:47]} 8. d4 {[%clk 0:02:51]}  Nf6 {[%clk 0:02:35]} 9. b4 {[%clk 0:02:50]}  O-O {[%clk 0:02:23]} 10. b5 {[%clk 0:02:48]}  exd4 {[%clk 0:02:20]} 11. exd4 {[%clk 0:02:40]}  Re8+ {[%clk 0:02:20]} 12. Be3 {[%clk 0:02:34]}  Na5 {[%clk 0:02:20]} 13. Qd3 {[%clk 0:02:25]}  axb5 {[%clk 0:02:14]} 14. cxb5 {[%clk 0:02:23]}  Be6 {[%clk 0:02:11]} 15. Nd2 {[%clk 0:02:20]}  Qd7 {[%clk 0:02:07]} 16. Kf1 {[%clk 0:02:15]}  Bf5 {[%clk 0:02:06]} 17. Nde4 {[%clk 0:01:49]}  Nxe4 {[%clk 0:02:05]} 18. Bxe4 {[%clk 0:01:44]}  Rxe4 {[%clk 0:02:05]} 19. Nxe4 {[%clk 0:01:41]}  d5 {[%clk 0:02:05]} 20. f3 {[%clk 0:01:29]}  dxe4 {[%clk 0:01:53]} 21. fxe4 {[%clk 0:01:29]}  Bxh3+ {[%clk 0:01:54]} 22. Kf2 {[%clk 0:01:22]}  Re8 {[%clk 0:01:54]} 23. a4 {[%clk 0:01:09]}  Bg4 {[%clk 0:01:47]} 24. Rac1 {[%clk 0:01:05]}  Bb6 {[%clk 0:01:46]} 25. d5 {[%clk 0:00:53]}  f5 {[%clk 0:01:31]} 26. Bxb6 {[%clk 0:00:43]}  fxe4 {[%clk 0:01:30]} 27. Qe3 {[%clk 0:00:27]}  cxb6 {[%clk 0:01:30]} 28. Qd4 {[%clk 0:00:10]}  e3+ {[%clk 0:01:28]} 29. Kg2 {[%clk 0:00:00]}  Nb3 {[%clk 0:01:27]} 0-1


[Site "https://www.chess.com"]

[Event "Titled Tuesday Blitz May 9 Early 2023"]
[White "Hayrapetyan, Hovik"]
[Black "Shuvalov, Evgenij"]
[WhiteFideId "13302639"]
[BlackFideId "4187237"]
[WhiteElo "2348"]
[BlackElo "2080"]
[Result "0-1"]
[Round "03"]
[TimeControl "180+2"]
[Date "2023.05.09"]
[WhiteClock "0:00:00"]
[BlackClock "0:00:19"]

1. d4 {[%clk 0:02:56]}  Nf6 {[%clk 0:02:59]} 2. c4 {[%clk 0:02:56]}  g6 {[%clk 0:02:59]} 3. Nc3 {[%clk 0:02:55]}  d5 {[%clk 0:03:00]} 4. cxd5 {[%clk 0:02:55]}  Nxd5 {[%clk 0:03:01]} 5. e4 {[%clk 0:02:56]}  Nxc3 {[%clk 0:03:01]} 6. bxc3 {[%clk 0:02:57]}  Bg7 {[%clk 0:03:01]} 7. Nf3 {[%clk 0:02:57]}  c5 {[%clk 0:03:01]} 8. Rb1 {[%clk 0:02:57]}  O-O {[%clk 0:03:01]} 9. Be2 {[%clk 0:02:57]}  Nc6 {[%clk 0:03:00]} 10. d5 {[%clk 0:02:57]}  Ne5 {[%clk 0:03:00]} 11. Nxe5 {[%clk 0:02:57]}  Bxe5 {[%clk 0:03:01]} 12. Qd2 {[%clk 0:02:55]}  e6 {[%clk 0:03:01]} 13. f4 {[%clk 0:02:53]}  Bc7 {[%clk 0:03:01]} 14. O-O {[%clk 0:02:52]}  exd5 {[%clk 0:03:00]} 15. exd5 {[%clk 0:02:53]}  Ba5 {[%clk 0:03:00]} 16. d6 {[%clk 0:02:52]}  Rb8 {[%clk 0:02:58]} 17. Ba3 {[%clk 0:02:48]}  b6 {[%clk 0:02:55]} 18. Rbd1 {[%clk 0:02:39]}  Bd7 {[%clk 0:02:40]} 19. f5 {[%clk 0:02:10]}  Bxf5 {[%clk 0:02:29]} 20. Bb2 {[%clk 0:01:48]}  b5 {[%clk 0:01:53]} 21. Rxf5 {[%clk 0:01:36]}  gxf5 {[%clk 0:01:53]} 22. Qd3 {[%clk 0:00:34]}  Qf6 {[%clk 0:01:29]} 23. d7 {[%clk 0:00:26]}  c4 {[%clk 0:01:23]} 24. Qd5 {[%clk 0:00:20]}  Rfd8 {[%clk 0:01:10]} 25. Bf3 {[%clk 0:00:19]}  Bxc3 {[%clk 0:00:59]} 26. Bxc3 {[%clk 0:00:19]}  Qxc3 {[%clk 0:01:00]} 27. Qxf5 {[%clk 0:00:19]}  Qg7 {[%clk 0:00:53]} 28. Bd5 {[%clk 0:00:14]}  Qg6 {[%clk 0:00:47]} 29. Qf4 {[%clk 0:00:10]}  c3 {[%clk 0:00:26]} 30. Rf1 {[%clk 0:00:08]}  Rf8 {[%clk 0:00:20]} 31. Bxf7+ {[%clk 0:00:07]}  Qxf7 {[%clk 0:00:19]} 32. Qg5+ {[%clk 0:00:02]}  Qg7 {[%clk 0:00:19]} 33. Qd5+ {[%clk 0:00:00]}  Kh8 {[%clk 0:00:19]} 0-1


[Site "https://www.chess.com"]

[Event "Titled Tuesday Blitz May 9 Early 2023"]
[White "surrenderPLS"]
[Black "Starozhilov, Leonid"]
[BlackFideId "14106752"]
[WhiteElo "2493"]
[BlackElo "2352"]
[Result "1-0"]
[Round "03"]
[TimeControl "180+2"]
[Date "2023.05.09"]
[WhiteClock "0:00:17"]
[BlackClock "0:00:02"]

1. e4 {[%clk 0:03:00]}  g6 {[%clk 0:02:57]} 2. d4 {[%clk 0:03:00]}  Bg7 {[%clk 0:02:57]} 3. Nc3 {[%clk 0:03:00]}  d6 {[%clk 0:02:58]} 4. Nf3 {[%clk 0:03:00]}  Nf6 {[%clk 0:02:58]} 5. Be3 {[%clk 0:03:00]}  O-O {[%clk 0:02:58]} 6. Qd2 {[%clk 0:03:00]}  Bg4 {[%clk 0:02:59]} 7. O-O-O {[%clk 0:02:58]}  Nc6 {[%clk 0:02:48]} 8. Be2 {[%clk 0:02:56]}  Bxf3 {[%clk 0:02:47]} 9. gxf3 {[%clk 0:02:55]}  e5 {[%clk 0:02:48]} 10. d5 {[%clk 0:02:45]}  Nd4 {[%clk 0:02:47]} 11. h4 {[%clk 0:02:44]}  Nh5 {[%clk 0:02:44]} 12. Nb5 {[%clk 0:02:34]}  Nxe2+ {[%clk 0:02:21]} 13. Qxe2 {[%clk 0:02:34]}  Nf4 {[%clk 0:02:22]} 14. Bxf4 {[%clk 0:02:29]}  exf4 {[%clk 0:02:22]} 15. h5 {[%clk 0:02:29]}  a6 {[%clk 0:02:15]} 16. Nd4 {[%clk 0:02:24]}  Qf6 {[%clk 0:02:13]} 17. hxg6 {[%clk 0:02:17]}  hxg6 {[%clk 0:02:12]} 18. c3 {[%clk 0:01:50]}  Rfe8 {[%clk 0:02:03]} 19. Qf1 {[%clk 0:01:48]}  b5 {[%clk 0:01:43]} 20. Qh3 {[%clk 0:01:44]}  Rab8 {[%clk 0:01:30]} 21. Rdg1 {[%clk 0:01:42]}  b4 {[%clk 0:01:26]} 22. Nf5 {[%clk 0:01:41]}  bxc3 {[%clk 0:01:13]} 23. b3 {[%clk 0:01:27]}  c2 {[%clk 0:01:13]} 24. Qh7+ {[%clk 0:01:21]}  Kf8 {[%clk 0:01:12]} 25. Qxg7+ {[%clk 0:01:21]}  Qxg7 {[%clk 0:01:12]} 26. Nxg7 {[%clk 0:01:22]}  Kxg7 {[%clk 0:01:12]} 27. Kxc2 {[%clk 0:01:18]}  a5 {[%clk 0:01:11]} 28. Rg4 {[%clk 0:01:15]}  c6 {[%clk 0:01:05]} 29. dxc6 {[%clk 0:01:11]}  Rec8 {[%clk 0:01:04]} 30. Kb2 {[%clk 0:01:11]}  a4 {[%clk 0:01:03]} 31. Rc1 {[%clk 0:01:06]}  axb3 {[%clk 0:00:51]} 32. axb3 {[%clk 0:01:07]}  Rb6 {[%clk 0:00:40]} 33. Rxf4 {[%clk 0:01:04]}  Rcxc6 {[%clk 0:00:37]} 34. Rxc6 {[%clk 0:01:05]}  Rxc6 {[%clk 0:00:37]} 35. Rh4 {[%clk 0:01:02]}  Kf6 {[%clk 0:00:31]} 36. b4 {[%clk 0:01:00]}  Ke7 {[%clk 0:00:31]} 37. Rh1 {[%clk 0:00:58]}  Kd7 {[%clk 0:00:30]} 38. Rc1 {[%clk 0:00:58]}  Ra6 {[%clk 0:00:29]} 39. Ra1 {[%clk 0:00:57]}  Rc6 {[%clk 0:00:28]} 40. Kb3 {[%clk 0:00:53]}  Ke6 {[%clk 0:00:23]} 41. Ra2 {[%clk 0:00:35]}  f5 {[%clk 0:00:23]} 42. Rc2 {[%clk 0:00:32]}  Rb6 {[%clk 0:00:20]} 43. Ka4 {[%clk 0:00:30]}  Ke5 {[%clk 0:00:20]} 44. b5 {[%clk 0:00:28]}  fxe4 {[%clk 0:00:17]} 45. fxe4 {[%clk 0:00:29]}  Kxe4 {[%clk 0:00:18]} 46. Rc6 {[%clk 0:00:29]}  Rb8 {[%clk 0:00:14]} 47. Rxd6 {[%clk 0:00:29]}  g5 {[%clk 0:00:12]} 48. Rf6 {[%clk 0:00:28]}  Ke5 {[%clk 0:00:12]} 49. Rf7 {[%clk 0:00:26]}  Ke6 {[%clk 0:00:11]} 50. Rf3 {[%clk 0:00:26]}  Ke5 {[%clk 0:00:08]} 51. Ka5 {[%clk 0:00:22]}  Ra8+ {[%clk 0:00:08]} 52. Kb6 {[%clk 0:00:22]}  Rb8+ {[%clk 0:00:09]} 53. Ka6 {[%clk 0:00:22]}  Ra8+ {[%clk 0:00:08]} 54. Kb7 {[%clk 0:00:22]}  Ra1 {[%clk 0:00:06]} 55. b6 {[%clk 0:00:21]}  Kd6 {[%clk 0:00:04]} 56. Rf6+ {[%clk 0:00:20]}  Kd7 {[%clk 0:00:04]} 57. Rg6 {[%clk 0:00:20]}  Ra5 {[%clk 0:00:03]} 58. Rg7+ {[%clk 0:00:18]}  Kd8 {[%clk 0:00:04]} 59. Kb8 {[%clk 0:00:18]}  Rf5 {[%clk 0:00:02]} 60. b7 {[%clk 0:00:17]}  Rxf2 {[%clk 0:00:02]} 61. Rxg5 {[%clk 0:00:17]}  Ra2 {[%clk 0:00:03]} 62. Rd5+ {[%clk 0:00:17]}  Ke7 {[%clk 0:00:03]} 63. Kc7 {[%clk 0:00:17]}  Rc2+ {[%clk 0:00:04]} 64. Kb6 {[%clk 0:00:17]}  Rb2+ {[%clk 0:00:02]} 65. Rb5 {[%clk 0:00:17]} 1-0


[Site "https://www.chess.com"]

[Event "Titled Tuesday Blitz May 9 Early 2023"]
[White "Rakotomaharo, Fy Antenaina"]
[Black "Hossain, Enamul"]
[WhiteFideId "13100050"]
[BlackFideId "10200649"]
[WhiteElo "2427"]
[BlackElo "2433"]
[Result "1-0"]
[Round "03"]
[TimeControl "180+2"]
[Date "2023.05.09"]
[WhiteClock "0:01:59"]
[BlackClock "0:00:51"]

1. e4 {[%clk 0:03:00]}  c5 {[%clk 0:02:59]} 2. Nf3 {[%clk 0:03:01]}  Nc6 {[%clk 0:02:59]} 3. Bb5 {[%clk 0:03:00]}  g6 {[%clk 0:02:58]} 4. Bxc6 {[%clk 0:02:59]}  dxc6 {[%clk 0:02:58]} 5. d3 {[%clk 0:03:00]}  Bg7 {[%clk 0:02:57]} 6. h3 {[%clk 0:03:00]}  Nf6 {[%clk 0:02:57]} 7. O-O {[%clk 0:03:01]}  Nd7 {[%clk 0:02:56]} 8. Nc3 {[%clk 0:02:59]}  e5 {[%clk 0:02:55]} 9. a3 {[%clk 0:02:58]}  Qe7 {[%clk 0:02:41]} 10. b4 {[%clk 0:02:57]}  cxb4 {[%clk 0:02:28]} 11. axb4 {[%clk 0:02:57]}  Qxb4 {[%clk 0:02:28]} 12. Qd2 {[%clk 0:02:56]}  Qb6 {[%clk 0:01:44]} 13. Ba3 {[%clk 0:02:53]}  Bf8 {[%clk 0:01:43]} 14. Rfb1 {[%clk 0:02:51]}  Qc7 {[%clk 0:01:42]} 15. Bxf8 {[%clk 0:02:44]}  Kxf8 {[%clk 0:01:41]} 16. Qh6+ {[%clk 0:02:44]}  Kg8 {[%clk 0:01:38]} 17. d4 {[%clk 0:02:38]}  exd4 {[%clk 0:01:31]} 18. Nxd4 {[%clk 0:02:39]}  Nf8 {[%clk 0:01:28]} 19. f4 {[%clk 0:02:25]}  Qd6 {[%clk 0:01:06]} 20. Rd1 {[%clk 0:02:22]}  Ne6 {[%clk 0:00:51]} 21. Nxe6 {[%clk 0:01:59]} 1-0


[Site "https://www.chess.com"]

[Event "Titled Tuesday Blitz May 9 Early 2023"]
[White "Zavortink, Matt"]
[Black "Orozbaev, Eldiar"]
[WhiteFideId "2034263"]
[BlackFideId "13802240"]
[WhiteElo "2488"]
[BlackElo "2201"]
[Result "0-1"]
[Round "03"]
[TimeControl "180+2"]
[Date "2023.05.09"]
[WhiteClock "0:00:11"]
[BlackClock "0:01:14"]

1. Nf3 {[%clk 0:03:00]}  d6 {[%clk 0:02:58]} 2. g3 {[%clk 0:02:58]}  e5 {[%clk 0:02:58]} 3. Bg2 {[%clk 0:02:58]}  g6 {[%clk 0:02:58]} 4. d4 {[%clk 0:02:53]}  e4 {[%clk 0:02:57]} 5. Nfd2 {[%clk 0:02:51]}  d5 {[%clk 0:02:57]} 6. c4 {[%clk 0:02:47]}  c5 {[%clk 0:02:47]} 7. cxd5 {[%clk 0:02:36]}  cxd4 {[%clk 0:02:44]} 8. Qa4+ {[%clk 0:02:22]}  Nd7 {[%clk 0:02:38]} 9. Qxd4 {[%clk 0:02:21]}  Ngf6 {[%clk 0:02:36]} 10. Nxe4 {[%clk 0:02:16]}  Bg7 {[%clk 0:02:15]} 11. Nd6+ {[%clk 0:02:13]}  Ke7 {[%clk 0:02:11]} 12. Qb4 {[%clk 0:01:58]}  Nc5 {[%clk 0:01:54]} 13. Qxc5 {[%clk 0:01:20]}  Qxd6 {[%clk 0:01:51]} 14. Qxd6+ {[%clk 0:01:17]}  Kxd6 {[%clk 0:01:52]} 15. Bf4+ {[%clk 0:01:16]}  Ke7 {[%clk 0:01:53]} 16. Nc3 {[%clk 0:01:16]}  Bf5 {[%clk 0:01:53]} 17. O-O {[%clk 0:01:15]}  Rhd8 {[%clk 0:01:51]} 18. e4 {[%clk 0:01:12]}  Bd7 {[%clk 0:01:50]} 19. Rfe1 {[%clk 0:01:05]}  Nh5 {[%clk 0:01:47]} 20. Bg5+ {[%clk 0:01:02]}  f6 {[%clk 0:01:48]} 21. Be3 {[%clk 0:01:00]}  Rac8 {[%clk 0:01:47]} 22. Rac1 {[%clk 0:00:59]}  Kf7 {[%clk 0:01:45]} 23. Bxa7 {[%clk 0:00:57]}  f5 {[%clk 0:01:45]} 24. exf5 {[%clk 0:00:55]}  gxf5 {[%clk 0:01:46]} 25. Bf3 {[%clk 0:00:54]}  Nf6 {[%clk 0:01:46]} 26. Bd4 {[%clk 0:00:53]}  f4 {[%clk 0:01:43]} 27. gxf4 {[%clk 0:00:52]}  Bh6 {[%clk 0:01:43]} 28. Be5 {[%clk 0:00:52]}  Bh3 {[%clk 0:01:42]} 29. Kh1 {[%clk 0:00:49]}  Ng4 {[%clk 0:01:42]} 30. Re2 {[%clk 0:00:38]}  Nxe5 {[%clk 0:01:37]} 31. Rxe5 {[%clk 0:00:35]}  Bxf4 {[%clk 0:01:38]} 32. Rh5 {[%clk 0:00:31]}  Bxc1 {[%clk 0:01:36]} 33. Rxh7+ {[%clk 0:00:31]}  Kg6 {[%clk 0:01:35]} 34. Rxh3 {[%clk 0:00:28]}  Bxb2 {[%clk 0:01:36]} 35. Ne2 {[%clk 0:00:22]}  Be5 {[%clk 0:01:33]} 36. Be4+ {[%clk 0:00:21]}  Kf6 {[%clk 0:01:31]} 37. f4 {[%clk 0:00:21]}  Bd6 {[%clk 0:01:30]} 38. Rh6+ {[%clk 0:00:21]}  Kg7 {[%clk 0:01:31]} 39. Re6 {[%clk 0:00:20]}  Ra8 {[%clk 0:01:25]} 40. Nd4 {[%clk 0:00:19]}  Bxf4 {[%clk 0:01:24]} 41. Nf5+ {[%clk 0:00:19]}  Kf7 {[%clk 0:01:23]} 42. h4 {[%clk 0:00:18]}  Rxa2 {[%clk 0:01:23]} 43. Rb6 {[%clk 0:00:16]}  Rda8 {[%clk 0:01:23]} 44. Rxb7+ {[%clk 0:00:16]}  Kf6 {[%clk 0:01:23]} 45. Rb6+ {[%clk 0:00:16]}  Kf7 {[%clk 0:01:19]} 46. Rb7+ {[%clk 0:00:16]}  Kf8 {[%clk 0:01:18]} 47. d6 {[%clk 0:00:14]}  Re2 {[%clk 0:01:14]} 48. Bf3 {[%clk 0:00:11]}  Rh2+ {[%clk 0:01:14]} 0-1


[Site "https://www.chess.com"]